[Event "GER-chT Youth Countries 2018"]
[Site "Wurzburg"]
[Date "2018.10.03"]
[Round "1"]
[White "Herbrig, Alexander"]
[Black "Richter, Leonard"]
[Result "1-0"]
[ECO "A48"]
[WhiteElo "2277"]
[BlackElo "2322"]
[Annotator "NA"]
[PlyCount "142"]
[EventDate "2018.10.03"]
[EventType "team-tourn"]
[EventCountry "GER"]
[SourceTitle "playchess.com"]
[Source "ChessBase"]
[SourceQuality "1"]
[TimeControl "40/5400+30:1800+30"]

1. d4 {[%emt 0:00:00]} Nf6 {[%emt 0:00:00]} 2. Nf3 {[%emt 0:00:00]} g6 {[%emt 0:00:00]} 3. Bg5 {[%emt 0:00:00]} Ne4 {[%emt 0:01:31]} 4. Bf4 {[%emt 0:00:00]} Bg7 {[%emt 0:02:53]} 5. Nbd2 {[%emt 0:00:21]} d5 {[%emt 0:02:52]} 6. e3 {[%emt 0:02:12] LiveBook: 43 Games} Bf5 {[%emt 0:07:15] A48: 1 d4 Nf6 2 Nf3 g6: Torre, London and Colle Systems} (6... c5 7. c3 Nc6 8. Bd3 Bf5 9. Bxe4 dxe4 10. Nh4 cxd4 11. Nxf5 gxf5 12. cxd4 Qd5 13. Qb3 Qxb3 14. axb3 Kd7 15. Ke2 Rhc8 {½-½ (37) Hertneck,G (2492)-Gajewski,G (2634) Germany 2014}) 7. c4 {[%emt 0:06:12]} dxc4 {[%emt 0:03:44]} 8. Bxc4 {[%emt 0:01:04] Threatens to win with Nxe4.} O-O $146 {[%emt 0:00:48] White is slightly better.} ({Predecessor:} 8... Nxd2 9. Qxd2 O-O 10. O-O c6 11. Qb4 b5 12. Be2 Nd7 13. Rac1 a5 {1-0 (41) Manea,A (2390)-Stegariu,V (2171) Mamaia 2013}) 9. Qb3 {[%emt 0:02:23] Black must now prevent Nxe4.} Nxd2 {[%emt 0:04:54]} 10. Nxd2 {[%emt 0:01:03]} Nd7 {[%emt 0:06:53] [#]} (10... Nc6 $11) 11. e4 $1 $16 {[%emt 0:08:20]} (11. Qxb7 $6 e5 $11) 11... e5 {[%emt 0:07:04] [#]} 12. dxe5 {[%emt 0:00:48]} (12. exf5 $6 exf4 13. O-O Nb6 $11) ({Better is} 12. Bg3 $1 $16 Bg4 13. f3 (13. Qxb7 exd4 14. h3 Be6 $11)) 12... Be6 $14 {[%emt 0:00:53]} 13. Qc3 {[%emt 0:05:13]} ({Don't blunder} 13. Qxb7 $2 Bxc4 14. Nxc4 Nc5 $19) ({Reject} 13. Bxe6 Nc5 $15) 13... Bxc4 {[%emt 0:22:28]} 14. Nxc4 {[%emt 0:01:15]} Qh4 {[%emt 0:01:10]} 15. g3 {[%emt 0:05:54]} Qh3 {[%emt 0:04:17]} 16. O-O-O {[%emt 0:04:24]} Rfe8 {[%emt 0:01:31]} 17. Qd4 {[%emt 0:08:17]} Qe6 {[%emt 0:05:46]} (17... Nf8 $11) 18. Qxd7 {[%emt 0:08:32]} (18. f3 $14) 18... Qxc4+ $11 {[%emt 0:00:05]} 19. Kb1 {[%emt 0:00:34]} Qxe4+ {[%emt 0:01:33]} 20. Ka1 {[%emt 0:00:10]} (20. Qd3 $1 $11 {remains equal.} Qxd3+ 21. Rxd3) 20... Bxe5 $17 {[%emt 0:02:27] Black is better.} 21. f3 {[%emt 0:07:12]} Qe2 {[%emt 0:07:41]} ({But not} 21... Qxf3 $6 22. Bxe5 Rxe5 23. Rhf1 $14) 22. Bxe5 {[%emt 0:01:32]} Qxe5 {[%emt 0:00:27]} 23. f4 {[%emt 0:01:31]} Qe7 {[%emt 0:01:54]} 24. f5 {[%emt 0:00:22] Precision: White = 39%, Black = 63%.} Rad8 {[%emt 0:06:15]} 25. Qxe7 {[%emt 0:00:31]} Rxd1+ {[%emt 0:00:07]} 26. Rxd1 {[%emt 0:00:05]} Rxe7 {[%emt 0:00:04]} 27. f6 {[%emt 0:00:13]} Re8 {[%emt 0:00:04]} 28. a3 {[%emt 0:01:26]} h5 {[%emt 0:00:38]} 29. Rd7 {[%emt 0:05:34]} Re1+ {[%emt 0:01:06]} 30. Ka2 {[%emt 0:00:08]} Rc1 {[%emt 0:00:02]} 31. Rd8+ {[%emt 0:00:20]} Kh7 {[%emt 0:00:12]} 32. Rf8 {[%emt 0:00:05]} g5 {[%emt 0:01:15]} 33. Rxf7+ {[%emt 0:00:19]} Kg6 {[%emt 0:00:05]} 34. Rf8 {[%emt 0:00:29]} Rf1 {[%emt 0:04:40]} 35. Rg8+ {[%emt 0:01:30]} Kh6 {[%emt 0:01:03]} 36. Rg7 {[%emt 0:02:27]} Rxf6 {[%emt 0:00:22]} 37. Rxc7 {[%emt 0:00:10]} Rb6 {[%emt 0:00:10]} 38. h4 {[%emt 0:00:53]} g4 {[%emt 0:01:28]} 39. a4 {[%emt 0:02:12]} Kg6 {[%emt 0:01:04]} 40. Ka3 {[%emt 0:00:31]} Kf5 {[%emt 0:01:15]} 41. Re7 {[%emt 0:35:46]} a5 {[%emt 0:05:01]} 42. b3 {[%emt 0:00:00]} Rb4 {[%emt 0:11:26]} 43. Rh7 {[%emt 0:00:00]} Kg6 {[%emt 0:02:42]} 44. Rd7 {[%emt 0:00:00]} Kf5 {[%emt 0:06:17]} 45. Rd5+ {[%emt 0:00:00]} Ke4 {[%emt 0:00:05]} 46. Rxa5 {[%emt 0:00:00]} Rd4 {[%emt 0:00:11]} 47. Rxh5 {[%emt 0:00:00]} Kf3 {[%emt 0:00:19]} 48. Rh7 {[%emt 0:00:00]} b6 {[%emt 0:00:50]} 49. Rh6 {[%emt 0:00:00]} Kxg3 {[%emt 0:00:52]} 50. Rxb6 {[%emt 0:00:00]} Kh2 {[%emt 0:02:51]} 51. Rg6 {[%emt 0:00:00]} g3 {[%emt 0:00:13]} 52. h5 {[%emt 0:00:00]} g2 {[%emt 0:00:45]} 53. a5 {[%emt 0:00:00]} g1=Q {[%emt 0:04:04]} 54. Rxg1 {[%emt 0:00:00]} Kxg1 {[%emt 0:00:03]} 55. b4 {[%emt 0:00:00]} Kf2 {[%emt 0:00:54]} 56. a6 {[%emt 0:00:00]} Ke3 {[%emt 0:01:28]} 57. a7 {[%emt 0:00:00]} Rd8 {[%emt 0:00:50]} 58. b5 {[%emt 0:00:00]} Kd4 {[%emt 0:00:19]} 59. b6 {[%emt 0:00:00]} Kc3 {[%emt 0:00:21]} 60. Ka4 {[%emt 0:00:00]} Kc4 {[%emt 0:00:31]} 61. Ka5 {[%emt 0:00:00]} Kc5 {[%emt 0:01:26]} 62. Ka6 {[%emt 0:00:00]} Rf8 {[%emt 0:00:29]} 63. h6 {[%emt 0:00:00]} Rh8 {[%emt 0:00:45]} 64. h7 {[%emt 0:00:00]} Rf8 {[%emt 0:00:05]} 65. b7 {[%emt 0:00:00]} Rf6+ {[%emt 0:00:30]} 66. Ka5 {[%emt 0:00:00]} Rf2 {[%emt 0:00:07]} 67. Ka4 {[%emt 0:00:00]} Kc4 {[%emt 0:00:11]} 68. Ka3 {[%emt 0:00:00]} Rf3+ {[%emt 0:00:05]} 69. Kb2 {[%emt 0:00:00]} Rf2+ {[%emt 0:00:19]} 70. Kc1 {[%emt 0:00:00]} Rf1+ {[%emt 0:01:19]} 71. Kd2 {[%emt 0:00:00]} Kd5 1-0

[Event "GER-chT Youth Countries 2018"]
[Site "Wurzburg"]
[Date "2018.10.03"]
[Round "1"]
[White "Nguyen, Alex Dac-Vuong"]
[Black "Arnhold, Steffi"]
[Result "0-1"]
[ECO "B41"]
[WhiteElo "2240"]
[BlackElo "1955"]
[Annotator "NA"]
[PlyCount "62"]
[EventDate "2018.10.03"]
[EventType "team-tourn"]
[EventCountry "GER"]
[SourceTitle "playchess.com"]
[Source "ChessBase"]
[SourceQuality "1"]
[TimeControl "40/5400+30:1800+30"]

{[%evp 13,51,11,51,52,50,45,55,59,68,46,54,52,53,47,47,51,40,0,26,15,31,4,20,-59,-49,-58,-54,-53,-64,-49,-65,-102,-108,-111,-115,-136,-49,-68,-38,-52]} 1. e4 {[%emt 0:00:00]} c5 {[%emt 0:00:00]} 2. Nf3 {[%emt 0:00:00]} e6 {[%emt 0:00:00]} 3. d4 {[%emt 0:00:00]} cxd4 {[%emt 0:00:12]} 4. Nxd4 {[%emt 0:00:01]} a6 {[%emt 0:00:12]} 5. c4 {[%emt 0:00:07]} Qc7 {[%emt 0:00:31]} 6. Nc3 {[%emt 0:03:12]} Nf6 {[%emt 0:02:18]} 7. a3 {[%emt 0:00:08]} Be7 {[%emt 0:02:21]} (7... Nxe4 $5 8. Nxe4 Qe5 $14) 8. Be2 {[%emt 0:00:49] B41: Sicilian: Kan Variation: 5 c4} d6 {[%emt 0:02:32]} 9. Be3 {[%emt 0:00:36]} O-O {[%emt 0:00:29]} 10. O-O {[%emt 0:00:07] White is slightly better.} Nbd7 {[%emt 0:00:54]} (10... b6 11. Qd2 Bb7 12. f3 Nbd7 13. Rac1 Rfc8 14. Rfd1 Qd8 15. b4 Ne5 16. Na4 Nfd7 17. Nb3 Bc6 18. Nb2 Bb7 19. Na4 Bc6 20. Nb2 Bb7 21. Na4 Bc6 {½-½ (21) Ftacnik,L (2548)-Jobava,B (2665) Baku 2016}) 11. Qd2 {[%emt 0:08:32]} b6 {[%emt 0:02:05]} 12. b4 {[%emt 0:03:14]} Bb7 {[%emt 0:03:05]} 13. f3 {[%emt 0:00:10]} Rac8 {[%emt 0:01:04]} 14. Rfc1 {[%emt 0:01:03]} Qb8 {[%emt 0:02:20]} 15. Nb3 {[%emt 0:01:33]} Rfe8 {[%emt 0:13:00]} 16. Bf1 $146 {[%emt 0:05:44]} Bd8 {[%emt 0:09:06]} 17. Kh1 {[%emt 0:00:43]} Bc7 {[%emt 0:04:31]} 18. Bg1 {[%emt 0:00:07] [#]} (18. Nd4 $11) 18... d5 $1 $36 {[%emt 0:10:06] Black has the initiative.} 19. cxd5 {[%emt 0:12:06]} Bf4 {[%emt 0:02:03]} 20. Be3 {[%emt 0:00:19]} Bxe3 {[%emt 0:02:18]} ({Much weaker is} 20... Bxh2 21. dxe6 Rxe6 22. Ne2 $11) 21. Qxe3 {[%emt 0:00:06]} exd5 {[%emt 0:00:19]} 22. Bd3 {[%emt 0:23:49]} dxe4 {[%emt 0:11:07]} 23. Nxe4 {[%emt 0:00:23]} Rxc1+ {[%emt 0:01:16]} 24. Rxc1 {[%emt 0:01:41] Black should prevent Nxf6+.} Nxe4 {[%emt 0:02:35]} (24... Bxe4 $1 $17 25. Bxe4 Nxe4 26. fxe4 Nf6) 25. fxe4 {[%emt 0:00:37]} Qe5 {[%emt 0:09:55]} 26. Qd4 {[%emt 0:03:12] Precision: White = 41%, Black = 54%.} Qxd4 {[%emt 0:03:12]} 27. Nxd4 {[%emt 0:00:06]} Nf6 {[%emt 0:01:25]} 28. Rc7 {[%emt 0:02:59]} Bxe4 {[%emt 0:06:21]} 29. Be2 {[%emt 0:07:06]} Bd3 {[%emt 0:01:24]} 30. Rc1 {[%emt 0:01:21]} Bxe2 {[%emt 0:00:11]} 31. Re1 {[%emt 0:00:06]} Bc4 {[%emt 0:00:30]} 0-1

[Event "GER-chT Youth Countries 2018"]
[Site "Wurzburg"]
[Date "2018.10.03"]
[Round "1"]
[White "Oberhofer, Cedric"]
[Black "Weller, Uli"]
[Result "1-0"]
[ECO "C00"]
[WhiteElo "2213"]
[BlackElo "2123"]
[Annotator "NA"]
[PlyCount "61"]
[EventDate "2018.10.03"]
[EventType "team-tourn"]
[EventCountry "GER"]
[SourceTitle "playchess.com"]
[Source "ChessBase"]
[SourceQuality "1"]
[TimeControl "40/5400+30:1800+30"]

1. e4 {[%emt 0:00:00]} e6 {[%emt 0:00:05]} 2. d3 {[%emt 0:00:11]} d5 {[%emt 0:00:09]} 3. Nd2 {[%emt 0:00:08]} b6 {[%emt 0:01:59]} 4. g3 {[%emt 0:03:30]} Bb7 {[%emt 0:00:30]} 5. Bg2 {[%emt 0:00:08]} Nf6 {[%emt 0:00:54]} 6. Qe2 {[%emt 0:07:40]} Be7 {[%emt 0:02:05]} 7. Ngf3 {[%emt 0:07:54]} O-O {[%emt 0:01:10]} 8. e5 {[%emt 0:01:54]} Nfd7 {[%emt 0:03:18]} 9. O-O {[%emt 0:01:10]} c5 {[%emt 0:01:41]} 10. c3 {[%emt 0:01:46]} Qc7 {[%emt 0:06:04]} 11. Re1 {[%emt 0:01:58]} Nc6 {[%emt 0:03:39]} 12. Nf1 {[%emt 0:02:14] C00: French: Unusual White 2nd moves} (12. h4 b5 13. Nf1 b4 14. h5 bxc3 15. bxc3 Ba6 16. h6 g6 17. Bf4 Qa5 18. Rac1 c4 19. d4 Ba3 {1-0 (31) Hera,I (2611)-Ganguly,S (2658) Biel 2017}) 12... b5 {[%emt 0:06:37]} 13. Bf4 {[%emt 0:05:26]} a5 {[%emt 0:03:51]} 14. h4 {[%emt 0:07:47] The position is equal.} b4 {[%emt 0:06:26]} 15. Ne3 $146 {[%emt 0:06:15]} ({Predecessor:} 15. N1h2 Ba6 16. Rad1 c4 17. d4 a4 18. Ng5 a3 19. Qh5 Bxg5 20. hxg5 axb2 21. Ng4 Qd8 22. Bxd5 exd5 23. Kg2 Re8 24. Rh1 {½-½ (24) Dickl,E (2266)-Knoeppel,B (2176) Remote email 2011}) 15... bxc3 {[%emt 0:13:22] [#] And now ...Nd4 would win.} 16. bxc3 {[%emt 0:00:54]} Nb6 {[%emt 0:01:51]} (16... d4 $11 {keeps the balance.} 17. cxd4 Nxd4 18. Nxd4 cxd4) 17. Rac1 {[%emt 0:06:16]} ({Better is} 17. Ng4 $16) 17... Rfd8 {[%emt 0:07:32]} (17... Qd7 $11 {remains equal.}) 18. Ng4 $16 {[%emt 0:03:40]} Bf8 {[%emt 0:09:42]} 19. h5 {[%emt 0:02:29]} Nd7 {[%emt 0:05:31]} (19... h6 $142) 20. h6 {[%emt 0:12:07]} g6 {[%emt 0:00:57]} 21. Bg5 {[%emt 0:02:45] Precision: White = 44%, Black =  3%.} ({White should try} 21. Ng5) 21... Re8 {[%emt 0:03:09]} 22. Qd2 {[%emt 0:02:54]} Rab8 {[%emt 0:01:54]} 23. c4 {[%emt 0:03:08]} Ne7 24. Qf4 {[%emt 0:05:56]} Bc6 {[%emt 0:10:37]} 25. Nf6+ {[%emt 0:02:23]} Nxf6 {[%emt 0:00:54]} 26. exf6 {[%emt 0:00:08]} Qxf4 {[%emt 0:00:21]} 27. Bxf4 {[%emt 0:00:04]} Nf5 {[%emt 0:00:20]} 28. Bxb8 {[%emt 0:01:30]} Rxb8 {[%emt 0:00:08]} 29. g4 {[%emt 0:01:29]} Nxh6 {[%emt 0:00:48]} 30. Ne5 {[%emt 0:00:12]} Bb7 {[%emt 0:01:44]} 31. Rb1 {[%emt 0:01:20]} 1-0

[Event "GER-chT Youth Countries 2018"]
[Site "Wurzburg"]
[Date "2018.10.03"]
[Round "1"]
[White "Leeb, Simon"]
[Black "Schneider, Jana"]
[Result "1/2-1/2"]
[ECO "E10"]
[WhiteElo "2203"]
[BlackElo "2174"]
[Annotator "NA"]
[PlyCount "55"]
[EventDate "2018.10.03"]
[EventType "team-tourn"]
[EventCountry "GER"]
[SourceTitle "playchess.com"]
[Source "ChessBase"]
[SourceQuality "1"]
[TimeControl "40/5400+30:1800+30"]

{[%evp 18,44,12,-20,-21,-17,-13,-28,12,8,18,26,29,7,14,-22,6,-1,18,2,15,0,12,8,36,0,22,25,94]} 1. d4 Nf6 2. c4 e6 3. Nf3 d5 4. g3 Bb4+ 5. Bd2 Bd6 6. Nc3 Nc6 7. Bg2 {[%emt 0:06:37]} dxc4 {[%emt 0:02:03]} 8. Qa4 {[%emt 0:02:39]} O-O {[%emt 0:02:15]} 9. Qxc4 {[%emt 0:01:11]} e5 {[%emt 0:02:35]} 10. O-O {[%emt 0:04:14] LiveBook: 3 Games} Nxd4 {[%emt 0:08:17] E04: Open Catalan: 5 Nf3} 11. Nxd4 {[%emt 0:01:14]} exd4 {[%emt 0:00:06]} 12. Qxd4 {[%emt 0:00:30]} Qe7 $146 {[%emt 0:02:09] Black has an edge.} ({Predecessor:} 12... Bxg3 $5 13. Nd5 (13. Qxd8 Rxd8 14. hxg3 Rxd2 15. Rfd1 Rd7 16. b4 Kf8 17. b5 Rb8 18. e4 {½-½ (28) Wojtaszek,R (2599)-Landa,K (2613) Germany 2008}) 13... Nxd5 14. hxg3 c6 $11) 13. Bf4 {[%emt 0:03:43]} (13. Rad1 {feels hotter.} Be5 14. Qh4 h6 15. Ne4 Re8 16. Bc3) 13... Bxf4 {[%emt 0:10:32]} 14. Qxf4 {[%emt 0:00:07]} c6 {[%emt 0:01:29]} 15. a3 {[%emt 0:14:17]} Be6 {[%emt 0:02:29]} 16. Qb4 {[%emt 0:08:50]} Rfe8 {[%emt 0:09:13]} 17. Rfd1 {[%emt 0:03:03]} Kf8 {[%emt 0:05:53]} 18. e4 {[%emt 0:09:00]} Rad8 {[%emt 0:17:12]} 19. Qa4 {[%emt 0:07:36]} a6 {[%emt 0:03:00]} 20. Qc2 {[%emt 0:01:11]} Qc5 {[%emt 0:03:11]} 21. Rac1 {[%emt 0:03:26]} Qh5 {[%emt 0:07:07]} 22. Na4 {[%emt 0:05:20]} Bg4 {[%emt 0:03:56] Precision: White = 17%, Black = 21%.} (22... Nd7 $11) 23. Rxd8 {[%emt 0:01:42]} Rxd8 {[%emt 0:00:01]} 24. Qc5+ {[%emt 0:03:42]} Qxc5 25. Nxc5 {[%emt 0:00:06]} Bc8 {[%emt 0:01:51]} 26. e5 {[%emt 0:02:51]} Nd7 27. Rd1 {[%emt 0:10:56]} Ke7 {[%emt 0:03:57]} 28. Nxd7 {[%emt 0:00:17]} 1/2-1/2

[Event "GER-chT Youth Countries 2018"]
[Site "Wurzburg"]
[Date "2018.10.03"]
[Round "1"]
[White "Nguyen, Huy Dat"]
[Black "Polster, Christian"]
[Result "0-1"]
[ECO "B50"]
[WhiteElo "2194"]
[BlackElo "2294"]
[Annotator "NA"]
[PlyCount "101"]
[EventDate "2018.10.03"]
[EventType "team-tourn"]
[EventCountry "GER"]
[SourceTitle "playchess.com"]
[Source "ChessBase"]
[SourceQuality "1"]
[TimeControl "40/5400+30:1800+30"]

1. e4 {[%emt 0:00:00]} c5 {[%emt 0:00:00]} 2. Nf3 {[%emt 0:00:30]} d6 {[%emt 0:00:00]} 3. Bc4 Nf6 {[%emt 0:00:11]} 4. d3 {[%emt 0:00:00]} Nc6 {[%emt 0:00:45]} 5. c3 {[%emt 0:00:00]} e6 {[%emt 0:02:09]} 6. Bb3 {B50: Sicilian: 2...d6, Miscellaneous} Be7 {[%emt 0:02:22]} 7. Qe2 {[%emt 0:02:29]} O-O {[%emt 0:00:34]} 8. Nbd2 {[%emt 0:00:56]} b5 {[%emt 0:04:57]} 9. Nf1 {[%emt 0:01:01]} Bb7 $146 {[%emt 0:02:33]} ({Predecessor:} 9... a5 10. Ng3 Ba6 11. O-O d5 12. e5 Nd7 13. a3 b4 14. Re1 bxc3 15. bxc3 {½-½ (54) Boschetti,C (2198)-Gallagher,J (2552) Switzerland 2005}) 10. Ng3 {[%emt 0:01:13]} Ne5 {[%emt 0:07:16]} 11. Nxe5 {[%emt 0:04:54]} dxe5 {[%emt 0:00:15]} 12. O-O {[%emt 0:00:19]} Qb6 {[%emt 0:04:28]} 13. Kh1 {[%emt 0:02:54]} Bd6 {[%emt 0:31:15]} 14. f4 {[%emt 0:01:30]} exf4 {[%emt 0:05:16]} 15. Bxf4 {[%emt 0:00:24]} Bxf4 {[%emt 0:00:09]} 16. Rxf4 {[%emt 0:00:09]} e5 {[%emt 0:15:03]} 17. Rf2 {[%emt 0:01:07]} Bc8 {[%emt 0:04:26]} 18. Raf1 {[%emt 0:06:37]} Be6 {[%emt 0:05:19]} 19. Rxf6 {[%emt 0:04:37]} gxf6 {[%emt 0:00:44]} 20. Rxf6 {[%emt 0:00:59]} Qd8 {[%emt 0:11:02]} 21. Nh5 {[%emt 0:00:08]} Kh8 {[%emt 0:00:33]} 22. Qf3 {[%emt 0:07:12]} Rg8 {[%emt 0:00:59]} 23. Bxe6 {[%emt 0:09:34]} fxe6 {[%emt 0:00:25]} 24. h3 {[%emt 0:03:51]} Rf8 {[%emt 0:00:41]} 25. Qg3 {[%emt 0:00:30]} Qc7 {[%emt 0:00:07]} 26. Rxe6 {[%emt 0:00:34]} Rae8 {[%emt 0:00:50]} 27. Rxe8 Rxe8 {[%emt 0:00:07]} 28. Nf6 {[%emt 0:26:06]} Rf8 {[%emt 0:00:31]} 29. Ng4 {[%emt 0:02:00]} Rf4 {[%emt 0:01:01]} 30. Kh2 {[%emt 0:02:06]} c4 {[%emt 0:00:24] [#]} (30... Qd6 $11 {keeps the balance.}) 31. d4 $1 {[%emt 0:01:49]} exd4 $2 {[%emt 0:00:29]} (31... Qg7 $16 {war angesagt.}) 32. cxd4 {[%emt 0:00:30]} Rf7 {[%emt 0:00:28]} 33. Ne5 {[%emt 0:00:29]} Rg7 {[%emt 0:00:24]} 34. Qf4 {[%emt 0:01:20]} Kg8 {[%emt 0:00:28]} 35. Qf5 {[%emt 0:02:58]} Re7 {[%emt 0:00:44]} 36. Qg5+ {[%emt 0:03:20]} Rg7 {[%emt 0:00:28]} 37. Qh5 {[%emt 0:00:18]} Kf8 {[%emt 0:00:30]} 38. Kh1 {[%emt 0:00:58]} b4 {[%emt 0:00:28]} 39. Qf5+ {[%emt 0:01:23]} Ke7 {[%emt 0:00:23]} 40. d5 {[%emt 0:01:33]} c3 {[%emt 0:00:42]} 41. bxc3 {[%emt 0:34:08]} bxc3 {[%emt 0:30:19]} 42. Nc6+ {[%emt 0:01:04]} Ke8 {[%emt 0:00:00]} 43. Qe6+ {[%emt 0:00:00]} Kf8 {[%emt 0:00:00]} 44. Qf6+ {[%emt 0:00:00]} Qf7 {[%emt 0:00:00]} 45. Qd8+ $1 {[%emt 0:00:00]} Qe8 {[%emt 0:00:00]} 46. Qf6+ {[%emt 0:00:00]} Kg8 {[%emt 0:00:00]} 47. Qxc3 {[%emt 0:00:00]} Qxe4 {[%emt 0:00:00]} 48. Qd2 {[%emt 0:00:00]} h6 {[%emt 0:00:00]} 49. Nb4 {[%emt 0:00:00]} Rd7 {[%emt 0:00:00]} 50. Qc1 $19 {[%emt 0:00:00]} (50. a4 $15) 50... Kh7 {[%emt 0:00:00]} 51. Qf1 {[%emt 0:00:00]} 0-1

[Event "GER-chT Youth Countries 2018"]
[Site "Wurzburg"]
[Date "2018.10.03"]
[Round "1"]
[White "Doll, Alexander"]
[Black "Muetsch, Annmarie"]
[Result "1/2-1/2"]
[ECO "B22"]
[WhiteElo "2122"]
[BlackElo "2206"]
[Annotator "ChessBase"]
[PlyCount "51"]
[EventDate "2018.10.03"]
[EventType "team-tourn"]
[EventCountry "GER"]
[SourceTitle "playchess.com"]
[Source "ChessBase"]
[SourceQuality "1"]
[TimeControl "40/5400+30:1800+30"]

1. e4 {[%emt 0:00:00]} c5 {[%emt 0:00:00]} 2. c3 {[%emt 0:00:00]} d5 {[%emt 0:00:00]} 3. exd5 {[%emt 0:00:00]} Qxd5 {[%emt 0:00:00]} 4. d4 {[%emt 0:00:00]} Bf5 {[%emt 0:00:00]} 5. Nf3 {[%emt 0:01:08]} Nc6 {[%emt 0:00:08]} 6. Be3 {[%emt 0:02:29]} cxd4 {[%emt 0:00:24]} 7. Nxd4 {[%emt 0:02:09]} Nf6 {[%emt 0:01:52]} 8. Qb3 {[%emt 0:05:23]} Nxd4 {[%emt 0:37:09]} 9. Bxd4 {[%emt 0:07:12]} e5 {[%emt 0:06:38]} 10. Qb5+ {[%emt 0:18:48]} Qxb5 {[%emt 0:04:11]} 11. Bxb5+ {[%emt 0:00:24]} Bd7 {[%emt 0:00:05]} 12. Bxd7+ {[%emt 0:00:24]} Nxd7 {[%emt 0:04:53]} 13. Be3 {[%emt 0:01:05]} f5 {[%emt 0:01:34]} 14. f3 {[%emt 0:02:55]} O-O-O {[%emt 0:20:57]} 15. Nd2 {[%emt 0:05:25]} Nc5 {[%emt 0:03:11]} 16. Bxc5 {[%emt 0:00:59]} Bxc5 {[%emt 0:00:06]} 17. O-O-O {[%emt 0:00:41]} Be3 {[%emt 0:03:35]} 18. Rhe1 {[%emt 0:02:32]} Bxd2+ {[%emt 0:01:17]} 19. Rxd2 {[%emt 0:00:11]} Rxd2 {[%emt 0:00:04]} 20. Kxd2 {[%emt 0:00:04]} Re8 {[%emt 0:00:55]} 21. g4 {[%emt 0:05:04]} fxg4 {[%emt 0:02:31]} 22. fxg4 {[%emt 0:00:40]} Kd7 {[%emt 0:00:18]} 23. Rf1 {[%emt 0:00:26]} Ke6 {[%emt 0:00:45]} 24. Ke3 {[%emt 0:00:43]} Rd8 {[%emt 0:00:49]} 25. a3 {[%emt 0:05:05]} Rc8 {[%emt 0:01:45]} 26. Ke4 1/2-1/2

[Event "GER-chT Youth Countries 2018"]
[Site "Wurzburg"]
[Date "2018.10.03"]
[Round "1"]
[White "Pubantz, Jan"]
[Black "Ratay, Meike"]
[Result "0-1"]
[ECO "E15"]
[WhiteElo "2084"]
[BlackElo "1887"]
[Annotator "NA"]
[PlyCount "92"]
[EventDate "2018.10.03"]
[EventType "team-tourn"]
[EventCountry "GER"]
[SourceTitle "playchess.com"]
[Source "ChessBase"]
[SourceQuality "1"]
[TimeControl "40/5400+30:1800+30"]

1. d4 {[%emt 0:00:00]} Nf6 {[%emt 0:00:00]} 2. c4 {[%emt 0:00:00]} e6 {[%emt 0:00:00]} 3. Nf3 {[%emt 0:00:00]} b6 {[%emt 0:00:00]} 4. g3 {[%emt 0:00:00]} Ba6 {[%emt 0:00:14]} 5. Qc2 {[%emt 0:00:19]} Be7 {[%emt 0:00:54] E15: Queen's Indian: 4 g3 sidelines, 4 g3 Ba6 and 4 g3 Bb7 early deviations} 6. Bg2 {[%emt 0:00:46]} O-O {[%emt 0:00:25]} 7. O-O {[%emt 0:09:02]} c6 {[%emt 0:00:36]} 8. Rd1 {[%emt 0:09:22]} d5 {[%emt 0:09:07]} 9. Ne5 {[%emt 0:03:53]} Bb7 {[%emt 0:03:49]} 10. Nc3 {[%emt 0:02:40]} Nbd7 {[%emt 0:04:47]} 11. e4 {[%emt 0:01:37]} Rc8 {[%emt 0:04:43]} 12. Bg5 $146 {[%emt 0:16:10]} ({Predecessor:} 12. Bf4 a6 13. Qe2 dxe4 14. Nxe4 Nxe4 15. Bxe4 Nxe5 16. Bxe5 {1-0 (39) Matlakov,M (2533)-Kalugin,S (2406) Dagomys 2009}) 12... Nxe4 {[%emt 0:06:52]} 13. Bxe7 {[%emt 0:00:33]} Qxe7 {[%emt 0:00:05]} 14. Nxe4 {[%emt 0:00:16]} dxe4 {[%emt 0:00:07]} 15. Bxe4 {[%emt 0:00:59]} Nf6 {[%emt 0:01:07]} 16. c5 {[%emt 0:10:03]} Nxe4 {[%emt 0:10:11]} 17. Qxe4 {[%emt 0:00:06]} bxc5 {[%emt 0:00:22]} 18. dxc5 {[%emt 0:00:27]} Rfd8 {[%emt 0:00:25]} 19. b4 {[%emt 0:06:05]} Rd5 {[%emt 0:03:35]} 20. Nc4 {[%emt 0:05:32]} Ba6 {[%emt 0:02:20]} 21. Nd6 {[%emt 0:03:22]} Rb8 {[%emt 0:00:43]} 22. a4 {[%emt 0:08:43]} Qf6 {[%emt 0:07:40] [#]} 23. b5 {[%emt 0:02:34]} ({White should play} 23. Rab1 $1 $18) 23... cxb5 {[%emt 0:03:04]} 24. axb5 {[%emt 0:03:34]} Bxb5 {[%emt 0:09:00] [#]} 25. Rdb1 $1 {[%emt 0:06:26]} Qc3 {[%emt 0:06:15]} (25... Rxc5 $16 {is a better defense.} 26. Qe3 (26. Rxa7 Qd8 $14) 26... Rbc8) 26. Qf4 {[%emt 0:03:04]} f5 {[%emt 0:05:11]} 27. Rxa7 {[%emt 0:06:24]} ({Less strong is} 27. Nxb5 Rxb5 28. Rc1 Qd4 $16) (27. Nxf5 $1 $18 {is the precise move to win.} Rdd8 28. c6 exf5 29. c7) 27... Qxc5 {[%emt 0:05:55] [#]} 28. Rxg7+ $1 {[%emt 0:01:17]} Kxg7 {[%emt 0:00:28]} 29. Qg5+ {[%emt 0:00:05]} Kf8 {[%emt 0:00:12]} 30. Qf6+ {[%emt 0:00:29]} Kg8 {[%emt 0:00:13]} 31. Qg5+ {[%emt 0:00:49]} (31. Qxe6+ $16 {is forced if you want to stay better.} Kg7 32. Qe7+ Kh8 33. Qf6+ Kg8 34. Qg5+ Kf8 35. Rxb5 Qxd6 36. Rxb8+ Qxb8 37. Qf6+ Kg8 38. Qe6+ Kg7 39. Qxd5) 31... Kf8 {[%emt 0:00:08]} 32. Qf6+ {[%emt 0:00:10]} Kg8 {[%emt 0:00:09]} 33. Nf7 $2 {[%emt 0:00:58]} h5 {[%emt 0:05:53]} 34. Nh6+ {[%emt 0:00:36]} Kh7 {[%emt 0:00:08]} 35. Qf7+ {[%emt 0:00:31]} Kxh6 {[%emt 0:00:50]} 36. Qf6+ {[%emt 0:00:16]} Kh7 {[%emt 0:00:07]} 37. Qf7+ {[%emt 0:00:05]} Kh8 {[%emt 0:01:25]} 38. Qf6+ {[%emt 0:00:18]} Kg8 {[%emt 0:01:12]} 39. Qg6+ {[%emt 0:00:36]} Kf8 {[%emt 0:01:10]} 40. Qf6+ {[%emt 0:01:07] [#]} Ke8 $1 {[%emt 0:02:24]} 41. Qh8+ {[%emt 0:13:33]} Qf8 {[%emt 0:01:38]} 42. Qxh5+ {[%emt 0:00:08]} Ke7 {[%emt 0:03:49]} 43. Rc1 {[%emt 0:01:41]} Qh8 {[%emt 0:06:31]} 44. Qg5+ {[%emt 0:01:18]} Qf6 {[%emt 0:00:08]} 45. Qf4 {[%emt 0:00:04]} Rbd8 {[%emt 0:01:48]} 46. Qb4+ {[%emt 0:00:20]} Ke8 $19 {[%emt 0:01:25]} 0-1